fUST/lending_fUST_20250920
["ID","MTS","AMOUNT","RATE_DAILY","PERIOD"]
[386548810,1758379215170,-300.0,0.00020683,2]
[386548811,1758379215260,-1200.0,0.00020683,2]
[386548812,1758379215716,666.0,0.00019789,2]
[386548813,1758379224444,-9374.02,0.00020679,2]
[386548814,1758379245034,500.0,0.00018186,2]
[386548815,1758379248637,500.0,0.00019282,2]
[386548816,1758379252265,500.0,0.00020378,2]
[386548817,1758379252598,615.8153509,0.00019792,2]
[386548818,1758379254527,1882.34723802,0.000199,2]
[386548819,1758379254623,377.46,0.00019232,2]
[386548820,1758379255131,754.91,0.00020148,2]
[386548821,1758379266602,-168.0,0.00020584,2]
[386548822,1758379266683,-300.0,0.00020678,2]
[386548823,1758379266767,-4056.84,0.00020679,2]
[386548824,1758379266855,-172.9167739,0.00020679,2]
[386548825,1758379266936,-124.4964522,0.00020679,2]
[386548826,1758379283646,-355.5035478,0.00020679,2]
[386548827,1758379283738,-690.08,0.00020679,2]
[386548828,1758379283828,-480.0,0.0002068,2]
[386548829,1758379283912,-392.59,0.0002068,2]
[386548830,1758379283996,-480.0,0.00020681,2]
[386548831,1758379284084,-1163.48,0.00020681,2]
[386548832,1758379284176,-265.8029044,0.00020681,2]
[386548833,1758379309474,1000.0,0.00019738,2]
[386548834,1758379312864,1982.91,0.00020581,2]
[386548835,1758379326726,-160.0,0.00020679,2]
[386548836,1758379326810,-480.0,0.0002068,2]
[386548837,1758379326893,-2345.0970956,0.00020681,2]
[386548838,1758379326978,-300.0,0.00020681,2]
[386548839,1758379327062,-480.0,0.00020682,2]
[386548840,1758379327144,-480.0,0.00020682,2]
[386548841,1758379327228,-480.0,0.00020682,2]
[386548842,1758379334736,-480.0,0.00020681,2]
[386548843,1758379334832,-480.0,0.00020681,2]
[386548844,1758379334923,-1079.11,0.00020682,2]
[386548845,1758379335115,-480.0,0.00020682,2]
[386548846,1758379335198,-480.0,0.00020682,2]
[386548847,1758379335283,-493.81,0.00020682,2]
[386548848,1758379335370,-480.0,0.00020682,2]
[386548849,1758379335463,-480.0,0.00020682,2]
[386548850,1758379335562,-480.0,0.00020683,2]
[386548851,1758379342247,420.67,0.00019239,2]
[386548852,1758379343042,841.33,0.00020156,2]
[386548853,1758379344751,-3614.13,0.00020683,2]
[386548855,1758379396933,-1374.54,0.00020679,2]
[386548856,1758379397028,-428.99357794,0.00020681,2]
[386548857,1758379397112,-480.0,0.00020681,2]
[386548858,1758379397203,-354.7776158,0.00020681,2]
[386548859,1758379397290,-480.0,0.00020682,2]
[386548860,1758379397377,-480.0,0.00020682,2]
[386548861,1758379397467,-300.0,0.00020682,2]
[386548862,1758379398206,-278.40761252,0.00020681,2]
[386548863,1758379424972,-260.71238748,0.00020681,2]
[386548864,1758379425061,-480.0,0.00020681,2]
[386548865,1758379425141,-480.0,0.00020681,2]
[386548866,1758379425231,-480.0,0.00020681,2]
[386548867,1758379425307,-480.0,0.00020681,2]
[386548868,1758379425389,-480.0,0.00020682,2]
[386548869,1758379425467,-607.92398858,0.00020682,2]
[386548870,1758379425554,-669.06,0.00020682,2]
[386548871,1758379425637,-481.15540265,0.00020682,2]
[386548872,1758379425718,-480.0,0.00020682,2]
[386548873,1758379426167,-2771.75,0.00020683,2]
[386548874,1758379426242,-1200.0,0.00020683,2]
[386548875,1758379426316,-1019.15,0.00020683,2]
[386548876,1758379427041,-18.21,0.00020683,2]
[386548877,1758379427050,-202.30644258,0.00020684,2]
[386548878,1758379430685,404.6,0.0001925,2]
[386548879,1758379431178,809.21,0.00020166,2]
[386548880,1758379434908,-480.0,0.00020682,2]
[386548881,1758379434994,-277.69355742,0.00020684,2]
[386548882,1758379435082,-1352.57,0.00020684,2]
[386548883,1758379435166,-181.428,0.00020684,2]
[386548884,1758379435247,-173.26107977,0.00020684,2]
[386548885,1758379435329,-480.0,0.00020684,2]
[386548886,1758379435414,-500.0,0.00020747,2]
[386548887,1758379435496,-500.0,0.00020747,2]
[386548888,1758379435687,-500.0,0.00020747,2]
[386548889,1758379435774,-500.0,0.00020747,2]
[386548890,1758379436732,-110.10472562,0.00020747,2]
[386548891,1758379446243,2317.99908778,0.000199,2]
[386548892,1758379457173,-480.0,0.00020679,2]
[386548893,1758379457278,-480.0,0.0002068,2]
[386548894,1758379457387,-160.0,0.00020681,2]
[386548895,1758379457495,-480.0,0.00020682,2]
[386548896,1758379457596,-480.0,0.00020682,2]
[386548897,1758379457694,-480.0,0.00020682,2]
[386548898,1758379457793,-300.0,0.00020746,2]
[386548899,1758379458580,-872.39244165,0.00020734,2]
[386548900,1758379458590,-3407.61755835,0.00020747,2]
[386548901,1758379458702,-10000.01,0.00020747,2]
[386548905,1758379506378,480.0,0.00020581,2]
[386548906,1758379513588,9520.01,0.00020581,2]
[386548907,1758379513669,3351.23,0.00020581,2]
[386548911,1758379520049,389.16,0.00019242,2]
[386548912,1758379520605,778.31,0.00020158,2]
[386548916,1758379531437,337.504713,0.00019763,2]
[386548919,1758379553321,661.33,0.00020581,2]
[386548920,1758379557251,-480.0,0.00020678,2]
[386548921,1758379557328,-480.0,0.00020679,2]
[386548922,1758379557409,-1296.21,0.00020679,2]
[386548923,1758379557479,-480.0,0.00020681,2]
[386548924,1758379557555,-480.0,0.00020681,2]
[386548925,1758379557635,-1200.0,0.00020681,2]
[386548926,1758379557712,-160.0,0.00020681,2]
[386548927,1758379557788,-367.59,0.00020682,2]
[386548928,1758379558303,-112.41,0.00020682,2]
[386548929,1758379558372,-480.0,0.00020682,2]
[386548930,1758379558443,-348.58943325,0.00020682,2]
[386548931,1758379558513,-480.0,0.00020682,2]
[386548932,1758379558587,-480.0,0.00020682,2]
[386548933,1758379558661,-480.0,0.00020682,2]
[386548934,1758379558739,-480.0,0.00020682,2]
[386548935,1758379558822,-482.46802352,0.00020682,2]
[386548936,1758379558904,-480.0,0.00020682,2]
[386548937,1758379558983,-480.0,0.00020682,2]
[386548938,1758379559062,-467.46242403,0.00020682,2]
[386548939,1758379607455,374.3,0.00019228,2]
[386548940,1758379608000,748.59,0.00020144,2]
[386548941,1758379617437,-593.39481975,0.00020681,2]
[386548942,1758379617520,-480.0,0.00020682,2]
[386548943,1758379617604,-480.0,0.00020682,2]
[386548944,1758379617688,-1102.4,0.00020682,2]
[386548945,1758379617781,-480.0,0.00020682,2]
[386548946,1758379617865,-327.90261799,0.00020682,2]
[386548947,1758379617947,-480.0,0.00020682,2]
[386548948,1758379618027,-376.80897342,0.00020682,2]
[386548949,1758379618108,-480.0,0.00020682,2]
[386548951,1758379634905,2240.73245154,0.000199,2]
[386548952,1758379635126,-475.2,0.00020678,2]
[386548953,1758379636081,-4.8,0.00020678,2]
[386548954,1758379636103,-480.0,0.00020681,2]
[386548955,1758379636126,-441.8841766,0.00020683,2]
[386548956,1758379658070,1437.27,0.00020581,2]
[386548957,1758379677536,-480.0,0.00020679,2]
[386548958,1758379677625,-480.0,0.00020682,2]
[386548960,1758379677722,-1458.4058234,0.00020683,2]
[386548961,1758379677807,-500.0,0.000207,2]
[386548962,1758379677894,-480.0,0.00020747,2]
[386548963,1758379677978,-480.0,0.00020747,2]
[386548964,1758379678062,-599.18,0.00020747,2]
[386548965,1758379685529,-1459.45,0.00020747,2]
[386548966,1758379685613,-514.05785282,0.00020747,2]
[386548967,1758379685699,-1888.02,0.00020747,2]
[386548968,1758379685790,-480.0,0.00020747,2]
[386548969,1758379685878,-480.0,0.00020747,2]
[386548970,1758379693869,360.01,0.00019211,2]
[386548971,1758379694394,720.01,0.00020126,2]
[386548972,1758379695531,-480.0,0.00020682,2]
[386548973,1758379695617,-480.0,0.00020683,2]
[386548974,1758379705582,-3572.48,0.00020678,2]
[386548975,1758379705910,-2855.05,0.00020678,2]
[386548976,1758379705992,-480.0,0.00020682,2]
[386548978,1758379711670,10000.0,0.0001982,2]
[386548979,1758379715531,-320.04507709,0.00020682,2]
[386548980,1758379715729,-5677.80274492,0.00020683,2]
[386548981,1758379715860,-2734.84274492,0.00020683,2]
[386548982,1758379715958,-4530.32451016,0.00020683,2]
[386548990,1758379725628,-480.0,0.00020682,2]
[386548991,1758379725719,-165.35637363,0.00020739,2]
[386548992,1758379725809,-480.0,0.00020747,2]
[386548993,1758379725898,-488.04220272,0.00020747,2]
[386548994,1758379725985,-1370.13,0.00020747,2]
[386548995,1758379726076,-1581.65,0.00020747,2]
[386548996,1758379726162,-389.6528473,0.00020747,2]
[386548997,1758379726745,-90.3471527,0.00020747,2]
[386548998,1758379735611,-480.0,0.0002068,2]
[386548999,1758379735699,-480.0,0.00020682,2]
[386549000,1758379735787,-809.85303193,0.00020739,2]
[386549001,1758379735874,-500.68,0.00020747,2]
[386549002,1758379735956,-480.0,0.00020747,2]
[386549003,1758379736037,-2027.77,0.00020747,2]
[386549004,1758379736580,-443.40393614,0.00020747,2]
[386549005,1758379747684,-480.0,0.00020581,2]
[386549007,1758379775703,-994.14,0.00020678,2]
[386549008,1758379775794,-480.0,0.00020679,2]
[386549009,1758379775870,-480.0,0.00020682,2]
[386549010,1758379775943,-480.0,0.00020682,2]
[386549011,1758379776014,-480.0,0.00020682,2]
[386549012,1758379776095,-666.61,0.00020683,2]
[386549013,1758379776172,-200.93606386,0.00020747,2]
[386549014,1758379776252,-417.15472785,0.00020747,2]
[386549015,1758379776328,-480.0,0.00020747,2]
[386549016,1758379776401,-300.0,0.00020753,2]
[386549017,1758379777197,-42.32841658,0.00020754,2]
[386549018,1758379779149,346.26,0.00019246,2]
[386549019,1758379779695,692.52,0.00020162,2]
[386549020,1758379780200,671.05671844,0.00029368,120]
[386549021,1758379797056,240.16264298,0.00020131,2]
[386549022,1758379797856,-500.0,0.00020682,2]
[386549023,1758379797939,-706.95,0.00020747,2]
[386549024,1758379798015,-480.0,0.00020747,2]
[386549025,1758379798098,-897.92,0.00020747,2]
[386549026,1758379798179,-457.67158342,0.00020754,2]
[386549027,1758379798262,-500.0,0.00020754,2]
[386549028,1758379798341,-178.8189706,0.00020754,2]
[386549029,1758379798422,-500.0,0.00020754,2]
[386549030,1758379798508,-490.53896932,0.00020754,2]
[386549031,1758379798596,-76.21095332,0.00020754,2]
[386549032,1758379799332,-183.6264037,0.00020754,2]
[386549033,1758379816973,2196.09033941,0.000199,2]
[386549034,1758379824920,3108.69933128,0.0002937,120]
[386549035,1758379827876,-480.0,0.00020682,2]
[386549036,1758379827960,-480.0,0.00020682,2]
[386549037,1758379828043,-480.0,0.00020682,2]
[386549038,1758379828136,-3012.18,0.00020747,2]
[386549039,1758379828218,-240.16264298,0.00020754,2]
[386549040,1758379828295,-152.68642246,0.00020754,2]
[386549055,1758379832319,-309.95186912,0.00020754,2]
[386549056,1758379832329,-516.83570363,0.00020754,2]
[386549057,1758379832338,-500.0,0.00020754,2]
[386549058,1758379832348,-78.01460707,0.00020754,2]
[386549059,1758379832360,-421.98539293,0.00020754,2]
[386549060,1758379832369,-500.0,0.00020754,2]
[386549061,1758379832378,-500.0,0.00020754,2]
[386549062,1758379832388,-138.86030926,0.00020754,2]
[386549063,1758379832404,-361.13969074,0.00020754,2]
[386549064,1758379832413,-12.96811159,0.00020754,2]
[386549065,1758379832425,-466.3630608,0.00020754,2]
[386549066,1758379832434,-500.0,0.00020754,2]
[386549067,1758379832443,-500.0,0.00020754,2]
[386549068,1758379832453,-500.0,0.00020754,2]
[386549069,1758379832463,-500.0,0.00020754,2]
[386549070,1758379832473,-35.4030651,0.00020783,2]
[386549177,1758379838167,-161.35,0.00020681,2]
[386549178,1758379838177,-128.37510607,0.00020754,2]
[386549179,1758379838188,-39998.03821646,0.00020754,2]
[386549180,1758379838198,-444.5969349,0.00020783,2]
[386549181,1758379838207,-480.0,0.00020783,2]
[386549182,1758379838217,-629.92,0.00020783,2]
[386549183,1758379838226,-1518.64,0.00020783,2]
[386549184,1758379838235,-1822.48220453,0.00020785,2]
[386549185,1758379838245,-4096.48437523,0.00020785,2]
[386549186,1758379838254,-506.05544701,0.00020785,2]
[386549187,1758379838264,-465.89679883,0.00020785,2]
[386549188,1758379838273,-263.35952617,0.00020838,2]
[386549189,1758379838284,-216.64047383,0.00020838,2]
[386549190,1758379838294,-480.0,0.00020838,2]
[386549191,1758379838303,-480.0,0.00020838,2]
[386549192,1758379838313,-480.0,0.00020838,2]
[386549193,1758379838322,-480.0,0.00020838,2]
[386549194,1758379838331,-500.0,0.00020839,2]
[386549195,1758379838340,-480.0,0.00020839,2]
[386549196,1758379838350,-480.0,0.00020839,2]
[386549197,1758379838359,-509.33,0.00020839,2]
[386549198,1758379838368,-480.0,0.00020839,2]
[386549199,1758379838468,-269.92848751,0.00020839,2]
[386549200,1758379838504,-249.22,0.00020839,2]
[386549201,1758379838515,-480.0,0.00020839,2]
[386549202,1758379838524,-480.0,0.00020839,2]
[386549203,1758379838534,-638.05,0.00020839,2]
[386549204,1758379838543,-480.0,0.00020839,2]
[386549205,1758379838553,-495.43,0.00020839,2]
[386549206,1758379838562,-915.1,0.00020839,2]
[386549207,1758379838572,-480.0,0.00020839,2]
[386549208,1758379838582,-480.0,0.00020839,2]
[386549209,1758379838592,-480.0,0.00020839,2]
[386549210,1758379838601,-480.0,0.00020839,2]
[386549211,1758379838610,-480.0,0.00020839,2]
[386549212,1758379838620,-480.0,0.00020839,2]
[386549213,1758379838630,-480.0,0.00020839,2]
[386549214,1758379838640,-480.0,0.00020839,2]
[386549215,1758379838650,-480.0,0.00020839,2]
[386549216,1758379838659,-480.0,0.00020839,2]
[386549217,1758379838669,-622.95,0.00020839,2]
[386549218,1758379838678,-607.37,0.00020839,2]
[386549219,1758379838688,-604.84,0.00020839,2]
[386549220,1758379838698,-480.0,0.00020839,2]
[386549221,1758379838707,-1428.79,0.00020839,2]
[386549222,1758379838716,-480.0,0.00020839,2]
[386549223,1758379838725,-480.0,0.00020839,2]
[386549224,1758379838735,-480.0,0.00020839,2]
[386549225,1758379838744,-480.0,0.00020839,2]
[386549226,1758379838754,-480.0,0.00020839,2]
[386549227,1758379838763,-480.0,0.00020839,2]
[386549228,1758379838773,-480.0,0.00020839,2]
[386549229,1758379838782,-1146.01,0.00020839,2]
[386549230,1758379838791,-1644.66,0.00020839,2]
[386549231,1758379838800,-480.0,0.00020839,2]
[386549232,1758379838810,-480.0,0.00020839,2]
[386549233,1758379838819,-480.0,0.00020839,2]
[386549234,1758379838828,-151.0,0.00020839,2]
[386549235,1758379838837,-151.0,0.00020839,2]
[386549236,1758379838847,-480.0,0.00020839,2]
[386549237,1758379838857,-1437.27,0.00020855,2]
[386549238,1758379838868,-101.21261415,0.00020855,2]
[386549239,1758379839020,-278.68738585,0.00020855,2]
[386549240,1758379839029,-626.94,0.00020856,2]
[386549241,1758379839039,-3124.62,0.00020856,2]
[386549242,1758379839049,-564.28,0.00020856,2]
[386549243,1758379839059,-464.0,0.00020856,2]
[386549244,1758379839069,-480.0,0.00020856,2]
[386549245,1758379839082,-151.0,0.00020856,2]
[386549246,1758379839092,-151.0,0.00020856,2]
[386549247,1758379839101,-137.05425723,0.00020856,2]
[386549248,1758379839229,1296.91,0.00020581,2]
[386549302,1758379840497,-155.63784769,0.00020838,2]
[386549304,1758379840507,-168.59575563,0.00020838,2]
[386549306,1758379840517,-480.0,0.00020839,2]
[386549308,1758379840527,-1296.91,0.00020855,2]
[386549310,1758379840537,-13.94574277,0.00020856,2]
[386549312,1758379840546,-151.0,0.00020856,2]
[386549314,1758379840556,-124.57565391,0.00020856,2]
[386549317,1758379840569,-1491.67434609,0.00020856,2]
[386549318,1758379840579,-480.0,0.00020856,2]
[386549320,1758379840588,-480.0,0.00020856,2]
[386549322,1758379840598,-480.0,0.00020856,2]
[386549324,1758379840608,-1236.34,0.00020856,2]
[386549327,1758379840618,-2647.79,0.00020856,2]
[386549329,1758379840629,-480.0,0.00020856,2]
[386549331,1758379840638,-480.0,0.00020856,2]
[386549333,1758379840648,-19040.02,0.00020858,2]
[386549334,1758379840657,-4172.59375355,0.00020893,2]
[386549337,1758379840667,-1342.06601209,0.00020893,2]
[386549339,1758379840677,-162.0715699,0.000209,2]
[386549341,1758379840686,-151.0,0.000209,2]
[386549342,1758379840695,-151.0,0.000209,2]
[386549344,1758379840705,-2414.28,0.00020913,10]
[386549347,1758379840716,-151.0,0.0002092,2]
[386549348,1758379840725,-500.0,0.0002092,2]
[386549351,1758379840734,-500.0,0.0002092,2]
[386549352,1758379840744,-520.74615727,0.0002092,2]
[386549354,1758379840753,-10734.53399463,0.0002092,2]
[386549357,1758379840767,-10011.72928895,0.0002092,2]
[386549359,1758379840777,-181.08010149,0.0002092,2]
[386549361,1758379840787,-3476.57,0.00020923,10]
[386549363,1758379840796,-2897.14,0.00020926,10]
[386549365,1758379840806,-1863.58719531,0.00020932,2]
[386549367,1758379840815,-4145.64,0.00020936,3]
[386549369,1758379840824,-259.1,0.00020942,3]
[386549371,1758379840833,-729.15341425,0.00020943,3]
[386549373,1758379840845,-1343.66658575,0.00020943,3]
[386549375,1758379840854,-1036.41,0.00020944,3]
[386549377,1758379840863,-518.21,0.00020944,3]
[386549379,1758379840872,-981.328,0.00020946,2]
[386549381,1758379840881,-2158.0,0.00020946,2]
[386549383,1758379840891,-634.0,0.00020946,2]
[386549385,1758379840900,-151.0,0.00020946,2]
[386549387,1758379840911,-151.0,0.00020946,2]
[386549389,1758379840921,-777.33,0.00020946,3]
[386549391,1758379840930,-2198.0,0.00020946,2]
[386549393,1758379840940,-151.0,0.0002095,2]
[386549395,1758379840948,-151.0,0.0002095,2]
[386549397,1758379840959,-151.0,0.0002095,2]
[386549399,1758379840968,-480.0,0.00020952,2]
[386549401,1758379840977,-6427.53,0.00020952,2]
[386549403,1758379840987,-994.14,0.00020952,2]
[386549405,1758379840996,-480.0,0.00020953,2]
[386549407,1758379841005,-480.0,0.00020954,2]
[386549409,1758379841014,-480.0,0.00020954,2]
[386549411,1758379841023,-477.23797273,0.00020954,2]
[386549413,1758379841032,-480.0,0.00020954,2]
[386549415,1758379841042,-480.0,0.00020955,2]
[386549417,1758379841052,-480.0,0.00020955,2]
[386549419,1758379841061,-480.0,0.00020955,2]
[386549421,1758379841074,-480.0,0.00020955,2]
[386549423,1758379841084,-480.0,0.00020955,2]
[386549425,1758379841094,-480.0,0.00020955,2]
[386549427,1758379841103,-480.0,0.00020955,2]
[386549429,1758379841114,-480.0,0.00020956,2]
[386549431,1758379841124,-480.0,0.00020956,2]
[386549433,1758379841134,-329.74284097,0.00020956,2]
[386549435,1758379841144,-480.0,0.00020956,2]
[386549437,1758379841153,-480.0,0.00020956,2]
[386549439,1758379841162,-480.0,0.00020956,2]
[386549441,1758379841172,-480.0,0.00020956,2]
[386549443,1758379841182,-480.0,0.00020956,2]
[386549445,1758379841191,-480.0,0.00020956,2]
[386549447,1758379841200,-1079.11,0.00020956,2]
[386549448,1758379841209,-480.0,0.00020956,2]
[386549449,1758379841218,-480.0,0.00020956,2]
[386549450,1758379841227,-493.81,0.00020956,2]
[386549451,1758379841238,-480.0,0.00020956,2]
[386549452,1758379841248,-480.0,0.00020956,2]
[386549453,1758379841257,-480.0,0.00020956,2]
[386549454,1758379841267,-480.0,0.00020956,2]
[386549455,1758379841276,-480.0,0.00020956,2]
[386549456,1758379841285,-669.06,0.00020956,2]
[386549457,1758379841295,-480.0,0.00020956,2]
[386549458,1758379841304,-480.0,0.00020956,2]
[386549459,1758379841314,-450.57,0.00020956,2]
[386549460,1758379841323,-480.0,0.00020956,2]
[386549461,1758379841332,-480.0,0.00020956,2]
[386549462,1758379841342,-270.06101749,0.00020956,2]
[386549463,1758379841351,-480.0,0.00020956,2]
[386549465,1758379841360,-288.05397451,0.00020956,2]
[386549467,1758379841369,-480.0,0.00020956,2]
[386549469,1758379841379,-480.0,0.00020956,2]
[386549470,1758379841388,-592.71,0.00020956,2]
[386549471,1758379841397,-594.81057222,0.00020956,2]
[386549472,1758379841407,-480.0,0.00020956,2]
[386549473,1758379841417,-480.0,0.00020956,2]
[386549474,1758379841426,-1102.4,0.00020956,2]
[386549475,1758379841436,-502.9907,0.00020956,2]
[386549476,1758379841445,-480.0,0.00020956,2]
[386549477,1758379841454,-480.0,0.00020956,2]
[386549478,1758379841463,-480.0,0.00020956,2]
[386549479,1758379841473,-480.0,0.00020956,2]
[386549480,1758379841482,-480.0,0.00020956,2]
[386549481,1758379841491,-480.0,0.00020956,2]
[386549482,1758379841501,-480.0,0.00020956,2]
[386549483,1758379841511,-480.0,0.00020957,2]
[386549484,1758379841520,-480.0,0.00020957,2]
[386549485,1758379841529,-480.0,0.00020957,2]
[386549486,1758379841539,-1900.29,0.00020957,2]
[386549487,1758379841548,-480.0,0.00020957,2]
[386549488,1758379841558,-12942.97,0.00020957,2]
[386549489,1758379841567,-666.61,0.00020957,2]
[386549490,1758379841576,-2196.09033916,0.00020972,2]
[386549491,1758379841587,-500.0,0.00020973,2]
[386549492,1758379841596,-500.0,0.00020973,2]
[386549493,1758379841678,-435.02672393,0.00020973,2]
[386549494,1758379841700,-500.0,0.00020973,2]
[386549495,1758379841710,-502.34057584,0.00020973,2]
[386549496,1758379841719,-500.0,0.00020973,2]
[386549497,1758379841730,-501.99835192,0.00020973,2]
[386549498,1758379841740,-500.0,0.00020973,2]
[386549499,1758379841750,-500.0,0.00020973,2]
[386549500,1758379841759,-208.96711558,0.00020973,2]
[386549501,1758379841769,-500.0,0.00020973,2]
[386549502,1758379841779,-500.0,0.00020973,2]
[386549503,1758379841788,-160.29353715,0.00020973,2]
[386549504,1758379841798,-100000.0,0.0002099,2]
[386549505,1758379841807,-2137.02008722,0.00020992,2]
[386549506,1758379841817,-3010.31900949,0.00021,2]
[386549507,1758379841826,-2344.677751,0.00021,2]
[386549508,1758379841836,-162.0715699,0.00021,2]
[386549509,1758379841845,-810.2410182,0.00021,2]
[386549510,1758379841854,-162.0715699,0.00021,2]
[386549511,1758379841865,-154.1887858,0.00021,2]
[386549512,1758379841874,-585.3964936,0.00021,2]
[386549513,1758379841884,-162.0715699,0.00021,2]
[386549514,1758379841893,-264.9789578,0.00021,2]
[386549515,1758379841902,-151.0,0.00021,2]
[386549516,1758379841912,-159.224814,0.00021,2]
[386549517,1758379841921,-151.0,0.00021,2]
[386549518,1758379841930,-151.0,0.00021,2]
[386549519,1758379841940,-151.0,0.00021,2]
[386549520,1758379841949,-153.491591,0.00021,2]
[386549521,1758379841958,-151.0,0.00021,2]
[386549522,1758379841968,-151.0,0.00021,2]
[386549523,1758379841977,-151.0,0.00021,2]
[386549524,1758379841987,-151.0,0.00021,2]
[386549525,1758379841996,-1888.02,0.00021021,2]
[386549526,1758379842005,-480.0,0.00021021,2]
[386549527,1758379842014,-1370.13,0.00021021,2]
[386549528,1758379842023,-1581.65,0.00021021,2]
[386549529,1758379842032,-480.0,0.00021021,2]
[386549530,1758379842041,-500.68,0.00021021,2]
[386549531,1758379842050,-480.0,0.00021021,2]
[386549532,1758379842059,-2027.77,0.00021021,2]
[386549533,1758379842069,-644.34,0.00021021,2]
[386549534,1758379842080,-480.0,0.00021021,2]
[386549535,1758379842090,-706.95,0.00021021,2]
[386549536,1758379842098,-897.92,0.00021021,2]
[386549537,1758379842107,-3012.18,0.00021021,2]
[386549538,1758379842116,-480.0,0.00021057,2]
[386549539,1758379842125,-480.0,0.00021057,2]
[386549540,1758379842134,-629.92,0.00021057,2]
[386549541,1758379842143,-1518.64,0.00021057,2]
[386549542,1758379842154,-1038.78,0.00021079,2]
[386549543,1758379842164,-225.767,0.00021084,2]
[386549544,1758379842173,-250.0,0.00021084,2]
[386549545,1758379842182,-262.72,0.00021084,2]
[386549546,1758379842192,-292.671,0.00021084,2]
[386549547,1758379842201,-733.0,0.0002109,2]
[386549548,1758379842210,-168.0,0.00021109,2]
[386549549,1758379842220,-480.0,0.00021112,2]
[386549550,1758379842229,-486.10468252,0.00021112,2]
[386549551,1758379842238,-403.71089448,0.00021112,2]
[386549552,1758379842247,-480.0,0.00021112,2]
[386549553,1758379842258,-500.0,0.00021113,2]
[386549554,1758379842267,-251.0,0.00021113,2]
[386549555,1758379842276,-495.71836654,0.00021113,2]
[386549556,1758379842286,-480.0,0.00021113,2]
[386549557,1758379842294,-509.33,0.00021113,2]
[386549558,1758379842303,-480.0,0.00021113,2]
[386549559,1758379842312,-151.0,0.00021113,2]
[386549560,1758379842321,-151.0,0.00021113,2]
[386549561,1758379842330,-151.0,0.00021113,2]
[386549562,1758379842339,-151.0,0.00021113,2]
[386549563,1758379842348,-358.131616,0.00021113,2]
[386549564,1758379842357,-206.47941,0.00021113,2]
[386549565,1758379842366,-358.131616,0.00021113,2]
[386549566,1758379842375,-358.131616,0.00021113,2]
[386549567,1758379842385,-358.131616,0.00021113,2]
[386549568,1758379842394,-151.0,0.00021113,2]
[386549569,1758379842403,-480.0,0.00021113,2]
[386549570,1758379842412,-480.0,0.00021113,2]
[386549571,1758379842422,-638.05,0.00021113,2]
[386549572,1758379842431,-495.43,0.00021113,2]
[386549573,1758379842440,-915.1,0.00021113,2]
[386549574,1758379842450,-480.0,0.00021113,2]
[386549575,1758379842459,-480.0,0.00021113,2]
[386549576,1758379842468,-480.0,0.00021113,2]
[386549577,1758379842478,-480.0,0.00021113,2]
[386549578,1758379842487,-480.0,0.00021113,2]
[386549579,1758379842496,-480.0,0.00021113,2]
[386549580,1758379842506,-480.0,0.00021113,2]
[386549581,1758379842515,-622.95,0.00021113,2]